Workbook

Sheet YHTEENVETO
N1: Laskurin versio: | P1: 1.0 | Q1: 2020-03-16
A2: Kuntiin kohdistuvien kustannusvaikutusten laskentakehikko
A9: Taloudellisten vaikutusten arviointi
B14: Muutoksen kohteena oleva laki ja muutettavat pykälät
D15: Muutettava laki | G15: Laissa muutettavat pykälät
B19: Lainsäädäntömuutoksen pykäläkohtainen kustannusvaikutus
D25: Muutettavan | E25: Onko pykälällä | F25: KÄYTTÖKUSTANNUKSET
D26: pykälän | E26: kustannus- | G26: Palvelujen
D27: numero | E27: vaikutusta? | F27: Henkilöstö | G27: ostot | H27: Aineet | I27: Kiinteistö | J27: ICT | K27: Muut | L27: Yhteensä
D29: 1 | E29: Kyllä | F29: =IF(E29="kyllä", Henkilöstömenot!K38, "-") -> 0 | G29: =IF(E29="kyllä", 'Palvelujen ostot'!J28, "-") -> 0 | H29: =IF(E29="kyllä", 'Aineet, tavarat'!J8, "-") -> 0 | I29: =IF(E29="kyllä", Kiinteistökulut!I13, "-") -> 0 | J29: X | K29: =IF(E29="kyllä",Muut!F3,"-") -> 0 | L29: =SUM(F29:K29) -> 0
D30: 2 | E30: Kyllä | F30: =IF(E30="kyllä", Henkilöstömenot!K39, "-") -> 0 | G30: =IF(E30="kyllä", 'Palvelujen ostot'!J29, "-") -> 0 | H30: =IF(E30="kyllä", 'Aineet, tavarat'!J9, "-") -> 0 | I30: =IF(E30="kyllä", Kiinteistökulut!I14, "-") -> 0 | J30: X | K30: =IF(E30="kyllä",Muut!F4,"-") -> 0 | L30: =SUM(F30:K30) -> 0
D31: 3 | E31: Kyllä | F31: =IF(E31="kyllä", Henkilöstömenot!K40, "-") -> 0 | G31: =IF(E31="kyllä", 'Palvelujen ostot'!J30, "-") -> 0 | H31: =IF(E31="kyllä", 'Aineet, tavarat'!J10, "-") -> 0 | I31: =IF(E31="kyllä", Kiinteistökulut!I15, "-") -> 0 | J31: X | K31: =IF(E31="kyllä",Muut!F5,"-") -> 0 | L31: =SUM(F31:K31) -> 0
F32: =SUM(F28:F31) -> 0 | G32: =SUM(G28:G31) -> 0 | H32: =SUM(H28:H31) -> 0 | I32: =SUM(I28:I31) -> 0 | J32: =ICT_yht -> 0 | K32: =SUM(K28:K31) -> 0 | L32: =SUM(F32:K32) -> 0
B34: Lainsäädäntömuutoksen kustannusvaikutus kustannuslajeittain (käyttökustannukset)
F35: Henkilöstö | H35: =F32 -> 0
F36: Palvelujen ostot | H36: =G32 -> 0
F37: Aineet | H37: =H32 -> 0
F38: Kiinteistöt | H38: =I32 -> 0
F39: ICT | H39: =J32 -> 0
F40: Muut | H40: =K32 -> 0
F41: Yhteensä | H41: =L32 -> 0
B43: Lisäksi lainsäädäntö aiheuttaa kertaluonteisia kustannuksia (investoinnit)
F44: Kiinteistöt | H44: =Kiinteistökulut!N16 -> 0
F45: ICT | H45: ='ICT-kustannukset'!C19 -> 0

Sheet Henkilöstömenot
A2: Henkilöstökustannukset
B15: Henkilöstötarpeen arviointi
B22: Lainsäädännön muutos aiheuttaa muutoksia seuraavissa henkilöstöryhmissä
D27: Valitse ammattinimikkeet alasvetovalikosta | E27: Yksikkökustannus työnantajalle, euroa/htv | G27: Taustaoletukset
D28: Valitse | E28: =VLOOKUP(D28,Ammatit,6,FALSE) -> 0 | G28: Kuntatyönantajan sos.vakuutusmaksut kesk. (%) | I28: 24.44
D29: Valitse | E29: =VLOOKUP(D29,Ammatit,6,FALSE) -> 0 | G29: Lomaraha (kk) | I29: 0.5
D30: Valitse | E30: =VLOOKUP(D30,Ammatit,6,FALSE) -> 0
D31: Valitse | E31: =VLOOKUP(D31,Ammatit,6,FALSE) -> 0
D32: Valitse | E32: =VLOOKUP(D32,Ammatit,6,FALSE) -> 0
C35: Lainsäädäntömuutoksen pykäläkohtainen vaikutus | F35: Syötä tähän HTV-lisäys | K35: Yhteensä, euroa
D36: Pykälä: | E36: =IF(D28="Valitse","",D28) ->  | F36: =IF(D29="Valitse","",D29) ->  | G36: =IF(D30="Valitse","",D30) ->  | H36: =IF(D31="Valitse","",D31) ->  | I36: =IF(D32="Valitse","",D32) -> 
D38: =YHTEENVETO!D29 -> 1 | K38: =E38*$E$28+F38*$E$29+G38*$E$30+H38*$E$31+I38*$E$32 -> 0
D39: =YHTEENVETO!D30 -> 2 | K39: =E39*$E$28+F39*$E$29+G39*$E$30+H39*$E$31+I39*$E$32 -> 0
D40: =YHTEENVETO!D31 -> 3 | K40: =E40*$E$28+F40*$E$29+G40*$E$30+H40*$E$31+I40*$E$32 -> 0
K41: =SUM(K35:K40) -> 0
D43: HTV-laskelmien tueksi (oletukset) | G43: HTV apulaskuri
D44: Vuodessa päiviä | E44: 365 | H44: per työntekijä | I44: HTV lisäys (per työntekijä)
D45: - joista lauantai- tai sunnuntaipäiviä | E45: 104 | G45: Työtunteja päivässä? | H45: 7.35 | I45: =H45/E50 -> 1
D46: Keskimäärin lomapäiviä | E46: 30 | G46: Työpäiviä vuodessa? | H46: 220 | I46: =H46/E49 -> 1
D47: Keskimäärin arkipyhiä | E47: 9 | G47: Työtuntimäärä vuodessa? | H47: 1617 | I47: =H47/E51 -> 1
D48: Koulutuspäivät | E48: 2
D49: Keskimääräinen työpäivämäärä | E49: =E44-E45-E46-E47-E48 -> 220 | H49: Muutos koko maan tasolla | I49: HTV lisäys (kokonaislisäys)
D50: Työtunteja päivässä | E50: 7.35 | G50: Työntuntien kokonaislisäys? | H50: 16170 | I50: =H50/E51 -> 10
D51: Teoreettinen työtuntimäärä vuodessa | E51: =E50*E49 -> 1617 | G51: Työpäivien kokonaislisäys? | H51: 2200 | I51: =H51/E49 -> 10
C54: Työtilaa oheislaskennalle ja muistiinpanoille

Sheet Palvelujen ostot
A1: Palvelujen ostot
D26: Pykälä | E26: Mitä palveluja ostetaan | F26: Arvio volyymista | G26: Mihin arvio perustuu | H26: Arvio yksikkökustannuksesta | I26: Mihin arvio perustuu | J26: Yhteensä
D28: =YHTEENVETO!D29 -> 1 | J28: =H28*F28 -> 0
D29: =YHTEENVETO!D30 -> 2 | J29: =H29*F29 -> 0
D30: =YHTEENVETO!D31 -> 3 | J30: =H30*F30 -> 0
F31: =SUM(F27:F30) -> 0 | J31: =SUM(J27:J30) -> 0
C33: Työtilaa oheislaskennalle ja muistiinpanoille

Sheet Aineet, tavarat
A2: Aineet, tavarat, tarvikkeet
D6: Pykälä | E6: Mitä aineita, tarvikkeita tms. tarvitaan | F6: Arvio volyymista | G6: Mihin arvio perustuu | H6: Arvio yksikkö-kustannuksesta | I6: Mihin arvio perustuu | J6: Yhteensä
D8: =YHTEENVETO!D29 -> 1 | J8: =H8*F8 -> 0
D9: =YHTEENVETO!D30 -> 2 | J9: =H9*F9 -> 0
D10: =YHTEENVETO!D31 -> 3 | J10: =H10*F10 -> 0
F11: =SUM(F7:F10) -> 0 | J11: =SUM(J7:J10) -> 0
C13: Työtilaa oheislaskennalle ja muistiinpanoille

Sheet Kiinteistökulut
A2: Kiinteistökustannukset
D10: Käyttökustannukset | K10: Investointitarpeet
D11: Pykälä | E11: Mitä tiloja tarvitaan | F11: Arvio volyymista, esim. neliömäärä | G11: Mihin arvio perustuu | H11: Arvio yksikkö-kustannuksesta, esim. neliövuokra / vuosi | I11: Yhteensä | K11: Pykälä | L11: Neliömäärä | M11: Neliökohtaiset rakennus-kustannukset | N11: Yhteensä
D13: =YHTEENVETO!D29 -> 1 | I13: =H13*F13 -> 0 | K13: =YHTEENVETO!D29 -> 1 | N13: =L13*M13 -> 0
D14: =YHTEENVETO!D30 -> 2 | I14: =H14*F14 -> 0 | K14: =YHTEENVETO!D30 -> 2 | N14: =L14*M14 -> 0
D15: =YHTEENVETO!D31 -> 3 | I15: =H15*F15 -> 0 | K15: =YHTEENVETO!D31 -> 3 | N15: =L15*M15 -> 0
F16: =SUM(F12:F15) -> 0 | I16: =SUM(I12:I15) -> 0 | N16: =SUM(N12:N15) -> 0
C17: Sisäisen vuokran neliöhintoja:
D18: Keskiarvo, 16 suurta kaupunkia, tilatyypeittäin:
G19: yhteensä | H19: po-vuokra | I19: ylläpitovuokra | J19: yhteensä
G20: €/m2/kk | H20: €/m2/kk | I20: €/m2/kk | J20: €/m2/vuosi
D21: Toimisto ja hallintotilat | G21: 12.57 | H21: 8.5 | I21: 4.07 | J21: 150.84
D22: Päiväkodit | G22: 13.91 | H22: 8.85 | I22: 5.06 | J22: 166.92
D23: Koulut | G23: 12.4 | H23: 8.48 | I23: 3.92 | J23: 148.8
D24: Muu sivistystoimi | G24: 11.07 | H24: 7.01 | I24: 4.06 | J24: 132.84
D25: Terveydenhuolto | G25: 14.26 | H25: 9.75 | I25: 4.51 | J25: 171.12
D26: Palveluasuminen | G26: 13.58 | H26: 9.21 | I26: 4.37 | J26: 162.96
D27: Muu sote | G27: 12.87 | H27: 8.67 | I27: 4.2 | J27: 154.44
D28: Pelastustoimi | G28: 10.46 | H28: 6.36 | I28: 4.1 | J28: 125.52
D29: Tekninen toimi | G29: 10.41 | H29: 6.83 | I29: 3.58 | J29: 124.92
D30: Muut tilat | G30: 10.49 | H30: 7.48 | I30: 3.01 | J30: 125.88
D31: Keskimääräinen sisäinen vuokra | G31: 12.2 | H31: 8.11 | I31: 4.09 | J31: 146.4
D32: Lähde: Trellum, tilaraportti
C35: Työtilaa oheislaskennalle ja muistiinpanoille

Sheet ICT-kustannukset
A2: ICT-kustannukset
A14: Investointityyppiset kustannukset
B15: ICT-laite- ja ohjelmistohankinnat
B16: - johon liittyvät henkilöstömenot*
B17: Uutta järjestelmää käyttävien henkilöiden liittyvä koulutus*
B18: Vanhan ohjelmiston/järjestelmän alasajon kustannukset**
C19: =SUM(C15:C18) -> 0
A21: Käytön aikaiset kustannukset
B22: Kuntahenkilöstön ajankäyttö*
B23: Lisenssit ym maksut***
B24: ICT-toimittajien käytön aikainen tarve (esim. päivitykset)***
B25: ATK-ohjelmien poistot (yleisohje: 2-5 vuotta) | C25: =C19/5 -> 0
B26: Muu, mikä?
C27: =SUM(C22:C26) -> 0
A29: Työtilaa oheislaskennalle ja muistiinpanoille

Sheet Muut
A1: Muut kustannukset
B2: Pykälä | C2: Mitä muita kustannuksia muutos aiheuttaa | D2: Volyymi | E2: Yksikkökustannus
B3: =YHTEENVETO!D29 -> 1 | F3: =D3*E3 -> 0
B4: =YHTEENVETO!D30 -> 2 | F4: =D4*E4 -> 0
B5: =YHTEENVETO!D31 -> 3 | F5: =D5*E5 -> 0
F6: =SUM(F2:F5) -> 0
B8: Työtilaa oheislaskennalle ja muistiinpanoille

Sheet Indeksikorotus
A1: Rahanarvon muutos
A3: Mikäli laskennassa käytetään vanhoja yksikkökustannuksia tai muita euromääräisiä tietoja, voi olla tarpeen muuntaa tiedot tämän päivän hintatasoa vastaavaksi.
A5: Valitse indeksi: | B5: 2015 | C5: 2016 | D5: 2017 | E5: 2018 | F5: 2019* | G5: 2020* | H5: 2021* | I5: 2022* | J5: 2023* | T5: 2016 | U5: 2017 | V5: 2018 | W5: 2019* | X5: 2020* | Y5: 2021* | Z5: 2022* | AA5: 2023*
A6: Peruspalveluiden hintaindeksi | C6: =VLOOKUP($A$6,indeksit,2,FALSE)*0.01 -> -0.004 | D6: =VLOOKUP($A$6,indeksit,3,FALSE)*0.01 -> -0.011 | E6: =VLOOKUP($A$6,indeksit,4,FALSE)*0.01 -> 0.014 | F6: =VLOOKUP($A$6,indeksit,5,FALSE)*0.01 -> 0.023 | G6: =VLOOKUP($A$6,indeksit,6,FALSE)*0.01 -> 0.027 | H6: =VLOOKUP($A$6,indeksit,7,FALSE)*0.01 -> 0.026 | I6: =VLOOKUP($A$6,indeksit,8,FALSE)*0.01 -> 0.025 | J6: =VLOOKUP($A$6,indeksit,9,FALSE)*0.01 -> 0.025 | S6: JMHI (Yhteensä) | T6: -0.4 | U6: -1.4 | V6: 1.3 | W6: 1.8
A7: Syötä erä haluamaasi vuoteen | E7: 100 | S7: JMHI (Yleishallinto) | T7: -0.2 | U7: -1.1 | V7: 1.5 | W7: 1.7
A8: Erä hintamuunnos tuleville vuosille | C8: =IF(B7=0,IF(B8=0,0,B8*(1+C6)),B7*(1+C6)) -> 0 | D8: =IF(C7=0,IF(C8=0,0,C8*(1+D6)),C7*(1+D6)) -> 0 | E8: =IF(D7=0,IF(D8=0,0,D8*(1+E6)),D7*(1+E6)) -> 0 | F8: 102.3 | G8: 105.0621 | H8: 107.7937146 | I8: 110.4885575 | J8: 113.2507714 | S8: JMHI (Sosiaali- ja terveystoimi) | T8: -0.2 | U8: -1.2 | V8: 1.3 | W8: 1.9
S9: JMHI (Sosiaalitoimi) | T9: -0.2 | U9: -1.1 | V9: 1.5 | W9: 2.1
S10: JMHI (Terveydenhuolto) | T10: -0.2 | U10: -1.4 | V10: 1.2 | W10: 1.8
S11: JMHI (Opetus- ja kulttuuritoimi) | T11: -0.9 | U11: -1.5 | V11: 1.2 | W11: 2
S12: JMHI (Opetustoimi) | T12: -1.1 | U12: -1.6 | V12: 1.2 | W12: 2
S13: JMHI (Kulttuuritoimi) | T13: 0.2 | U13: -1.2 | V13: 1.2 | W13: 1.8
S14: JMHI (Muut palvelut) | T14: -0.1 | U14: -1.1 | V14: 1.3 | W14: 1.2
S15: JMHI (Liiketoiminta) | T15: 0.1 | U15: -1 | V15: 1.6 | W15: 0.7
S16: Peruspalveluiden hintaindeksi | T16: -0.4 | U16: -1.1 | V16: 1.4 | W16: 2.3 | X16: 2.7 | Y16: 2.6 | Z16: 2.5 | AA16: 2.5

Sheet Ammatit ja palkat
B1: Kokoaikaisten lukumäärä | C1: Osa-aikaisten lukumäärä | D1: Säännöllisen työajan ansion keskiarvo, e/kk | E1: Kokonaisansion keskiarvo, e/kk | F1: Työnantaja-kustannus (sivukulut huomioiden) | G1: Osa- ja kokoaikaisista miehiä (%) | H1: Osa- ja kokoaikaisista naisia (%)
A2: syötä ammattinimike | D2: syötä ansio | F2: =IF(D2="syötä ansio","",E2*(12+Henkilöstömenot!$I$29)*(1+(Henkilöstömenot!$I$28/100))) -> 
A3: syötä ammattinimike | D3: syötä ansio | F3: =IF(D3="syötä ansio","",E3*(12+Henkilöstömenot!$I$29)*(1+(Henkilöstömenot!$I$28/100))) -> 
A4: syötä ammattinimike | D4: syötä ansio | F4: =IF(D4="syötä ansio","",E4*(12+Henkilöstömenot!$I$29)*(1+(Henkilöstömenot!$I$28/100))) -> 
A5: syötä ammattinimike | D5: syötä ansio | F5: =IF(D5="syötä ansio","",E5*(12+Henkilöstömenot!$I$29)*(1+(Henkilöstömenot!$I$28/100))) -> 
A6: syötä ammattinimike | D6: syötä ansio | F6: =IF(D6="syötä ansio","",E6*(12+Henkilöstömenot!$I$29)*(1+(Henkilöstömenot!$I$28/100))) -> 
A7: Valitse
A8: Yhteensä | B8: 357056 | C8: 55453 | D8: 3105 | E8: 3207 | F8: =D8*(12+Henkilöstömenot!$I$29)*(1+(Henkilöstömenot!$I$28/100)) -> 48298.275 | G8: 0.1891837511 | H8: =1-G8 -> 0.8108162489
A9: Aamu- ja iltapäiväkerhon ohjaaja | B9: 16 | C9: 56 | D9: 2143 | E9: 2143 | F9: =D9*(12+Henkilöstömenot!$I$29)*(1+(Henkilöstömenot!$I$28/100)) -> 33334.365 | G9: 0.08333333333 | H9: =1-G9 -> 0.9166666667
A10: Aamu- ja iltapäivätoiminnan ohjaaja | B10: 50 | C10: 39 | D10: 2134 | E10: 2135 | F10: =D10*(12+Henkilöstömenot!$I$29)*(1+(Henkilöstömenot!$I$28/100)) -> 33194.37 | G10: 0.01123595506 | H10: 0.9887640449
A11: Aikuiskoulutuskeskuksenopettaja | B11: 203 | C11: 22 | D11: 4096 | E11: 4098 | F11: =D11*(12+Henkilöstömenot!$I$29)*(1+(Henkilöstömenot!$I$28/100)) -> 63713.28 | G11: 0.4977777778 | H11: 0.5022222222
A12: Aikuiskoulutusopettaja | B12: 146 | C12: 28 | D12: 4127 | E12: 4127 | F12: =D12*(12+Henkilöstömenot!$I$29)*(1+(Henkilöstömenot!$I$28/100)) -> 64195.485 | G12: 0.5747126437 | H12: 0.4252873563
A13: Aineenopettaja | B13: 41 | C13: 1 | D13: 3567 | E13: 3674 | F13: =D13*(12+Henkilöstömenot!$I$29)*(1+(Henkilöstömenot!$I$28/100)) -> 55484.685 | G13: 0.2380952381 | H13: 0.7619047619
A14: Ajojärjestelijä | B14: 15 | C14: 1 | D14: 2978 | E14: 3161 | F14: =D14*(12+Henkilöstömenot!$I$29)*(1+(Henkilöstömenot!$I$28/100)) -> 46322.79 | G14: 0.6875 | H14: 0.3125
A15: Ala-asteen koulun rehtori | B15: 24 | D15: 5234 | E15: 5234 | F15: =D15*(12+Henkilöstömenot!$I$29)*(1+(Henkilöstömenot!$I$28/100)) -> 81414.87 | G15: 0.5 | H15: 0.5
A16: Aluearkkitehti | B16: 15 | C16: 3 | D16: 4479 | E16: 4479 | F16: =D16*(12+Henkilöstömenot!$I$29)*(1+(Henkilöstömenot!$I$28/100)) -> 69670.845 | G16: 0.3333333333 | H16: 0.6666666667
A17: Alue-esimies | B17: 49 | C17: 3 | D17: 3186 | E17: 3232 | F17: =D17*(12+Henkilöstömenot!$I$29)*(1+(Henkilöstömenot!$I$28/100)) -> 49558.23 | G17: 0.07692307692 | H17: 0.9230769231
A18: Aluekehitysasiantuntija | B18: 20 | C18: 1 | D18: 4120 | E18: 4120 | F18: =D18*(12+Henkilöstömenot!$I$29)*(1+(Henkilöstömenot!$I$28/100)) -> 64086.6 | G18: 0.4285714286 | H18: 0.5714285714
A19: Aluekehitysjohtaja | B19: 10 | D19: 5947 | E19: 5947 | F19: =D19*(12+Henkilöstömenot!$I$29)*(1+(Henkilöstömenot!$I$28/100)) -> 92505.585 | G19: 0.3 | H19: 0.7
A20: Aluekoordinaattori | B20: 29 | C20: 4 | D20: 3330 | E20: 3330 | F20: =D20*(12+Henkilöstömenot!$I$29)*(1+(Henkilöstömenot!$I$28/100)) -> 51798.15 | G20: 0.09090909091 | H20: 0.9090909091
A21: Aluepalomestari | B21: 20 | D21: 3523 | E21: 3826 | F21: =D21*(12+Henkilöstömenot!$I$29)*(1+(Henkilöstömenot!$I$28/100)) -> 54800.265 | G21: 1 | H21: 0
A22: Aluepalopäällikkö | B22: 11 | D22: 4784 | E22: 5075 | F22: =D22*(12+Henkilöstömenot!$I$29)*(1+(Henkilöstömenot!$I$28/100)) -> 74415.12 | G22: 1 | H22: 0
A23: Aluepäällikkö | B23: 45 | C23: 1 | D23: 4602 | E23: 4888 | F23: =D23*(12+Henkilöstömenot!$I$29)*(1+(Henkilöstömenot!$I$28/100)) -> 71584.11 | G23: 0.3260869565 | H23: 0.6739130435
A24: Aluevastaava | B24: 11 | C24: 1 | D24: 3583 | E24: 3583 | F24: =D24*(12+Henkilöstömenot!$I$29)*(1+(Henkilöstömenot!$I$28/100)) -> 55733.565 | G24: 0.25 | H24: 0.75
A25: Amanuenssi | B25: 229 | C25: 30 | D25: 2555 | E25: 2556 | F25: =D25*(12+Henkilöstömenot!$I$29)*(1+(Henkilöstömenot!$I$28/100)) -> 39743.025 | G25: 0.3474903475 | H25: 0.6525096525
A26: Ammatillinen ohjaaja | B26: 110 | C26: 10 | D26: 2386 | E26: 2391 | F26: =D26*(12+Henkilöstömenot!$I$29)*(1+(Henkilöstömenot!$I$28/100)) -> 37114.23 | G26: 0.4666666667 | H26: 0.5333333333
A27: Ammatinohjaaja | B27: 33 | C27: 8 | D27: 2873 | E27: 2927 | F27: =D27*(12+Henkilöstömenot!$I$29)*(1+(Henkilöstömenot!$I$28/100)) -> 44689.515 | G27: 0.7317073171 | H27: 0.2682926829
A28: Ammatinopettaja | B28: 11 | C28: 2 | D28: 3751 | E28: 3751 | F28: =D28*(12+Henkilöstömenot!$I$29)*(1+(Henkilöstömenot!$I$28/100)) -> 58346.805 | G28: 0.5384615385 | H28: 0.4615384615
A29: Ammattiaineiden opettaja | B29: 11 | D29: 3369 | E29: 3369 | F29: =D29*(12+Henkilöstömenot!$I$29)*(1+(Henkilöstömenot!$I$28/100)) -> 52404.795 | G29: 0.2727272727 | H29: 0.7272727273
A30: Ammattimies | B30: 480 | C30: 32 | D30: 2437 | E30: 2631 | F30: =D30*(12+Henkilöstömenot!$I$29)*(1+(Henkilöstömenot!$I$28/100)) -> 37907.535 | G30: 0.95703125 | H30: 0.04296875
A31: Ammattiohjaaja | B31: 16 | C31: 2 | D31: 2349 | E31: 2349 | F31: =D31*(12+Henkilöstömenot!$I$29)*(1+(Henkilöstömenot!$I$28/100)) -> 36538.695 | G31: 0.3888888889 | H31: 0.6111111111
A32: Apteekkari | B32: 12 | D32: 6191 | E32: 6246 | F32: =D32*(12+Henkilöstömenot!$I$29)*(1+(Henkilöstömenot!$I$28/100)) -> 96301.005 | G32: 0.3333333333 | H32: 0.6666666667
A33: Apuhoitaja | B33: 22 | C33: 15 | D33: 2673 | E33: 2673 | F33: =D33*(12+Henkilöstömenot!$I$29)*(1+(Henkilöstömenot!$I$28/100)) -> 41578.515 | G33: 0 | H33: 1
A34: Apulaiskaupunginjohtaja | B34: 15 | D34: 10696 | E34: 10696 | F34: =D34*(12+Henkilöstömenot!$I$29)*(1+(Henkilöstömenot!$I$28/100)) -> 166376.28 | G34: 0.8666666667 | H34: 0.1333333333
A35: Apulaisosastonhoitaja | B35: 1114 | C35: 82 | D35: 3276 | E35: 3437 | F35: =D35*(12+Henkilöstömenot!$I$29)*(1+(Henkilöstömenot!$I$28/100)) -> 50958.18 | G35: 0.05852842809 | H35: 0.9414715719
A36: Apulaisosastonhoitaja, sairaalassa | B36: 216 | C36: 15 | D36: 3212 | E36: 3346 | F36: =D36*(12+Henkilöstömenot!$I$29)*(1+(Henkilöstömenot!$I$28/100)) -> 49962.66 | G36: 0.04761904762 | H36: 0.9523809524
A37: Apulaispalopäällikkö | B37: 15 | D37: 3665 | E37: 4077 | F37: =D37*(12+Henkilöstömenot!$I$29)*(1+(Henkilöstömenot!$I$28/100)) -> 57009.075 | G37: 1 | H37: 0
A38: Apulaisrakennustarkastaja | B38: 11 | C38: 1 | D38: 3277 | E38: 3277 | F38: =D38*(12+Henkilöstömenot!$I$29)*(1+(Henkilöstömenot!$I$28/100)) -> 50973.735 | G38: 0.75 | H38: 0.25
A39: Apulaisrehtori | B39: 238 | C39: 2 | D39: 5207 | E39: 5211 | F39: =D39*(12+Henkilöstömenot!$I$29)*(1+(Henkilöstömenot!$I$28/100)) -> 80994.885 | G39: 0.4041666667 | H39: 0.5958333333
A40: Apulaisylifyysikko | B40: 10 | C40: 2 | D40: 6238 | E40: 6338 | F40: =D40*(12+Henkilöstömenot!$I$29)*(1+(Henkilöstömenot!$I$28/100)) -> 97032.09 | G40: 0.5 | H40: 0.5
A41: Apulaisylihammaslääkäri | B41: 19 | C41: 8 | D41: 7207 | E41: 7399 | F41: =D41*(12+Henkilöstömenot!$I$29)*(1+(Henkilöstömenot!$I$28/100)) -> 112104.885 | G41: 0.2592592593 | H41: 0.7407407407
A42: Apulaisylilääkäri | B42: 564 | C42: 129 | D42: 7066 | E42: 9169 | F42: =D42*(12+Henkilöstömenot!$I$29)*(1+(Henkilöstömenot!$I$28/100)) -> 109911.63 | G42: 0.380952381 | H42: 0.619047619
A43: Apumies | B43: 14 | C43: 2 | D43: 1809 | E43: 1809 | F43: =D43*(12+Henkilöstömenot!$I$29)*(1+(Henkilöstömenot!$I$28/100)) -> 28138.995 | G43: 0.8125 | H43: 0.1875
A44: Apuohjaaja | B44: 64 | C44: 41 | D44: 1918 | E44: 1942 | F44: =D44*(12+Henkilöstömenot!$I$29)*(1+(Henkilöstömenot!$I$28/100)) -> 29834.49 | G44: 0.4380952381 | H44: 0.5619047619
A45: Aputyöntekijä | B45: 29 | C45: 78 | D45: 1820 | E45: 1820 | F45: =D45*(12+Henkilöstömenot!$I$29)*(1+(Henkilöstömenot!$I$28/100)) -> 28310.1 | G45: 0.8971962617 | H45: 0.1028037383
A46: Apuvälinemekaanikko | B46: 20 | C46: 1 | D46: 2373 | E46: 2373 | F46: =D46*(12+Henkilöstömenot!$I$29)*(1+(Henkilöstömenot!$I$28/100)) -> 36912.015 | G46: 1 | H46: 0
A47: Apuvälineneuvoja | B47: 11 | C47: 1 | D47: 2562 | E47: 2562 | F47: =D47*(12+Henkilöstömenot!$I$29)*(1+(Henkilöstömenot!$I$28/100)) -> 39851.91 | G47: 0.3333333333 | H47: 0.6666666667
A48: Arkistonhoitaja | B48: 73 | C48: 7 | D48: 2415 | E48: 2415 | F48: =D48*(12+Henkilöstömenot!$I$29)*(1+(Henkilöstömenot!$I$28/100)) -> 37565.325 | G48: 0.15 | H48: 0.85
A49: Arkistonsihteeri | B49: 20 | C49: 6 | D49: 2384 | E49: 2466 | F49: =D49*(12+Henkilöstömenot!$I$29)*(1+(Henkilöstömenot!$I$28/100)) -> 37083.12 | G49: 0.1923076923 | H49: 0.8076923077
A50: Arkistopäällikkö | B50: 16 | C50: 1 | D50: 3841 | E50: 3841 | F50: =D50*(12+Henkilöstömenot!$I$29)*(1+(Henkilöstömenot!$I$28/100)) -> 59746.755 | G50: 0.1176470588 | H50: 0.8823529412
A51: Arkistosihteeri | B51: 100 | C51: 8 | D51: 2495 | E51: 2495 | F51: =D51*(12+Henkilöstömenot!$I$29)*(1+(Henkilöstömenot!$I$28/100)) -> 38809.725 | G51: 0.1574074074 | H51: 0.8425925926
A52: Arkistotyöntekijä | B52: 13 | C52: 5 | D52: 2126 | E52: 2128 | F52: =D52*(12+Henkilöstömenot!$I$29)*(1+(Henkilöstömenot!$I$28/100)) -> 33069.93 | G52: 0.2777777778 | H52: 0.7222222222
A53: Arkkitehti | B53: 108 | C53: 8 | D53: 4154 | E53: 4163 | F53: =D53*(12+Henkilöstömenot!$I$29)*(1+(Henkilöstömenot!$I$28/100)) -> 64615.47 | G53: 0.4655172414 | H53: 0.5344827586
A54: Asemakaava-arkkitehti | B54: 15 | C54: 1 | D54: 4582 | E54: 4582 | F54: =D54*(12+Henkilöstömenot!$I$29)*(1+(Henkilöstömenot!$I$28/100)) -> 71273.01 | G54: 0.5625 | H54: 0.4375
A55: Asemamestari | B55: 35 | C55: 2 | D55: 3347 | E55: 3792 | F55: =D55*(12+Henkilöstömenot!$I$29)*(1+(Henkilöstömenot!$I$28/100)) -> 52062.585 | G55: 0.972972973 | H55: 0.02702702703
A56: Asentaja | B56: 70 | C56: 3 | D56: 2497 | E56: 2863 | F56: =D56*(12+Henkilöstömenot!$I$29)*(1+(Henkilöstömenot!$I$28/100)) -> 38840.835 | G56: 0.9726027397 | H56: 0.02739726027
A57: Asiakasmaksusihteeri | B57: 82 | C57: 9 | D57: 2487 | E57: 2487 | F57: =D57*(12+Henkilöstömenot!$I$29)*(1+(Henkilöstömenot!$I$28/100)) -> 38685.285 | G57: 0.02197802198 | H57: 0.978021978
A58: Asiakasneuvoja | B58: 114 | C58: 18 | D58: 2448 | E58: 2454 | F58: =D58*(12+Henkilöstömenot!$I$29)*(1+(Henkilöstömenot!$I$28/100)) -> 38078.64 | G58: 0.1515151515 | H58: 0.8484848485
A59: Asiakasohjaaja | B59: 119 | C59: 11 | D59: 2800 | E59: 2805 | F59: =D59*(12+Henkilöstömenot!$I$29)*(1+(Henkilöstömenot!$I$28/100)) -> 43554 | G59: 0.02307692308 | H59: 0.9769230769
A60: Asiakaspalvelija | B60: 73 | C60: 10 | D60: 2399 | E60: 2470 | F60: =D60*(12+Henkilöstömenot!$I$29)*(1+(Henkilöstömenot!$I$28/100)) -> 37316.445 | G60: 0.2891566265 | H60: 0.7108433735
A61: Asiakaspalvelupäällikkö | B61: 38 | D61: 4053 | E61: 4204 | F61: =D61*(12+Henkilöstömenot!$I$29)*(1+(Henkilöstömenot!$I$28/100)) -> 63044.415 | G61: 0.3157894737 | H61: 0.6842105263
A62: Asiakaspalvelusihteeri | B62: 166 | C62: 16 | D62: 2417 | E62: 2418 | F62: =D62*(12+Henkilöstömenot!$I$29)*(1+(Henkilöstömenot!$I$28/100)) -> 37596.435 | G62: 0.05494505495 | H62: 0.9450549451
A63: Asiakaspalveluvastaava | B63: 21 | C63: 1 | D63: 2820 | E63: 2820 | F63: =D63*(12+Henkilöstömenot!$I$29)*(1+(Henkilöstömenot!$I$28/100)) -> 43865.1 | G63: 0.2272727273 | H63: 0.7727272727
A64: Asiakaspäällikkö | B64: 17 | C64: 1 | D64: 4225 | E64: 4225 | F64: =D64*(12+Henkilöstömenot!$I$29)*(1+(Henkilöstömenot!$I$28/100)) -> 65719.875 | G64: 0.2777777778 | H64: 0.7222222222
A65: Asiakassihteeri | B65: 46 | C65: 9 | D65: 2382 | E65: 2382 | F65: =D65*(12+Henkilöstömenot!$I$29)*(1+(Henkilöstömenot!$I$28/100)) -> 37052.01 | G65: 0 | H65: 1
A66: Asiakasvastaava | B66: 41 | C66: 2 | D66: 3516 | E66: 3588 | F66: =D66*(12+Henkilöstömenot!$I$29)*(1+(Henkilöstömenot!$I$28/100)) -> 54691.38 | G66: 0.1860465116 | H66: 0.8139534884
A67: Asiakirjahallinnon suunnittelija | B67: 23 | D67: 3293 | E67: 3293 | F67: =D67*(12+Henkilöstömenot!$I$29)*(1+(Henkilöstömenot!$I$28/100)) -> 51222.615 | G67: 0.347826087 | H67: 0.652173913
A68: Asiakkuuspäällikkö | B68: 71 | C68: 2 | D68: 4742 | E68: 4789 | F68: =D68*(12+Henkilöstömenot!$I$29)*(1+(Henkilöstömenot!$I$28/100)) -> 73761.81 | G68: 0.3561643836 | H68: 0.6438356164
A69: Asiakkuusvastaava | B69: 16 | C69: 1 | D69: 3578 | E69: 3578 | F69: =D69*(12+Henkilöstömenot!$I$29)*(1+(Henkilöstömenot!$I$28/100)) -> 55655.79 | G69: 0.2352941176 | H69: 0.7647058824
A70: Asianhallintapäällikkö | B70: 12 | C70: 1 | D70: 3620 | E70: 3620 | F70: =D70*(12+Henkilöstömenot!$I$29)*(1+(Henkilöstömenot!$I$28/100)) -> 56309.1 | G70: 0 | H70: 1
A71: Asianhallintasihteeri | B71: 58 | C71: 4 | D71: 2677 | E71: 2677 | F71: =D71*(12+Henkilöstömenot!$I$29)*(1+(Henkilöstömenot!$I$28/100)) -> 41640.735 | G71: 0.04838709677 | H71: 0.9516129032
A72: Asiantuntija | B72: 197 | C72: 27 | D72: 3687 | E72: 3699 | F72: =D72*(12+Henkilöstömenot!$I$29)*(1+(Henkilöstömenot!$I$28/100)) -> 57351.285 | G72: 0.3214285714 | H72: 0.6785714286
A73: Asiantuntijahoitaja | B73: 79 | C73: 19 | D73: 3213 | E73: 3270 | F73: =D73*(12+Henkilöstömenot!$I$29)*(1+(Henkilöstömenot!$I$28/100)) -> 49978.215 | G73: 0.05102040816 | H73: =1-G73 -> 0.9489795918
A74: Asiantuntijasairaanhoitaja | B74: 35 | C74: 6 | D74: 2975 | E74: 2995 | F74: =D74*(12+Henkilöstömenot!$I$29)*(1+(Henkilöstömenot!$I$28/100)) -> 46276.125 | G74: 0.07317073171 | H74: 0.9268292683
A75: Askartelunohjaaja | B75: 57 | C75: 16 | D75: 2438 | E75: 2444 | F75: =D75*(12+Henkilöstömenot!$I$29)*(1+(Henkilöstömenot!$I$28/100)) -> 37923.09 | G75: 0.06849315068 | H75: 0.9315068493
A76: Assistentti | B76: 136 | C76: 49 | D76: 2484 | E76: 2484 | F76: =D76*(12+Henkilöstömenot!$I$29)*(1+(Henkilöstömenot!$I$28/100)) -> 38638.62 | G76: 0.05945945946 | H76: 0.9405405405
A77: Asumisen ohjaaja | B77: 369 | C77: 30 | D77: 2930 | E77: 2967 | F77: =D77*(12+Henkilöstömenot!$I$29)*(1+(Henkilöstömenot!$I$28/100)) -> 45576.15 | G77: 0.1428571429 | H77: 0.8571428571
A78: Asumisenohjaaja | B78: 35 | C78: 13 | D78: 2700 | E78: 2769 | F78: =D78*(12+Henkilöstömenot!$I$29)*(1+(Henkilöstömenot!$I$28/100)) -> 41998.5 | G78: 0.1041666667 | H78: 0.8958333333
A79: Asumisneuvoja | B79: 19 | C79: 1 | D79: 2806 | E79: 2806 | F79: =D79*(12+Henkilöstömenot!$I$29)*(1+(Henkilöstömenot!$I$28/100)) -> 43647.33 | G79: 0 | H79: 1
A80: Asumisohjaaja | B80: 87 | C80: 14 | D80: 2753 | E80: 2792 | F80: =D80*(12+Henkilöstömenot!$I$29)*(1+(Henkilöstömenot!$I$28/100)) -> 42822.915 | G80: 0.09900990099 | H80: 0.900990099
A81: Asumispalvelujen esimies | B81: 18 | D81: 3352 | E81: 3352 | F81: =D81*(12+Henkilöstömenot!$I$29)*(1+(Henkilöstömenot!$I$28/100)) -> 52140.36 | G81: 0 | H81: 1
A82: Asumispalvelujen ohjaaja | B82: 34 | C82: 3 | D82: 2924 | E82: 2928 | F82: =D82*(12+Henkilöstömenot!$I$29)*(1+(Henkilöstömenot!$I$28/100)) -> 45482.82 | G82: 0.08108108108 | H82: 0.9189189189
A83: Asumispalvelujen päällikkö | B83: 14 | D83: 4017 | E83: 4055 | F83: =D83*(12+Henkilöstömenot!$I$29)*(1+(Henkilöstömenot!$I$28/100)) -> 62484.435 | G83: 0.1428571429 | H83: 0.8571428571
A84: Asumispalveluvastaava | B84: 12 | D84: 3689 | E84: 3689 | F84: =D84*(12+Henkilöstömenot!$I$29)*(1+(Henkilöstömenot!$I$28/100)) -> 57382.395 | G84: 0.08333333333 | H84: 0.9166666667
A85: Asumisyksikön esimies | B85: 21 | C85: 5 | D85: 3331 | E85: 3378 | F85: =D85*(12+Henkilöstömenot!$I$29)*(1+(Henkilöstömenot!$I$28/100)) -> 51813.705 | G85: 0 | H85: 1
A86: Asuntolanohjaaja | B86: 18 | C86: 3 | D86: 2576 | E86: 2576 | F86: =D86*(12+Henkilöstömenot!$I$29)*(1+(Henkilöstömenot!$I$28/100)) -> 40069.68 | G86: 0.380952381 | H86: 0.619047619
A87: Asuntolaohjaaja | B87: 33 | C87: 8 | D87: 2464 | E87: 2471 | F87: =D87*(12+Henkilöstömenot!$I$29)*(1+(Henkilöstömenot!$I$28/100)) -> 38327.52 | G87: 0.4634146341 | H87: 0.5365853659
A88: Asuntosihteeri | B88: 61 | C88: 6 | D88: 2749 | E88: 2749 | F88: =D88*(12+Henkilöstömenot!$I$29)*(1+(Henkilöstömenot!$I$28/100)) -> 42760.695 | G88: 0.08955223881 | H88: 0.9104477612
A89: Atk-asiantuntija | B89: 12 | C89: 3 | D89: 3470 | E89: 3509 | F89: =D89*(12+Henkilöstömenot!$I$29)*(1+(Henkilöstömenot!$I$28/100)) -> 53975.85 | G89: 0.7333333333 | H89: 0.2666666667
A90: Atk-suunnittelija | B90: 67 | C90: 4 | D90: 3217 | E90: 3252 | F90: =D90*(12+Henkilöstömenot!$I$29)*(1+(Henkilöstömenot!$I$28/100)) -> 50040.435 | G90: 0.7605633803 | H90: 0.2394366197
A91: Atk-tukihenkilö | B91: 129 | C91: 17 | D91: 2539 | E91: 2577 | F91: =D91*(12+Henkilöstömenot!$I$29)*(1+(Henkilöstömenot!$I$28/100)) -> 39494.145 | G91: 0.7739726027 | H91: 0.2260273973
A92: Atk-vastaava | B92: 10 | C92: 1 | D92: 2750 | E92: 2750 | F92: =D92*(12+Henkilöstömenot!$I$29)*(1+(Henkilöstömenot!$I$28/100)) -> 42776.25 | G92: 0.9090909091 | H92: 0.09090909091
A93: Audionomi | B93: 96 | C93: 22 | D93: 2774 | E93: 2956 | F93: =D93*(12+Henkilöstömenot!$I$29)*(1+(Henkilöstömenot!$I$28/100)) -> 43149.57 | G93: 0.03389830508 | H93: 0.9661016949
A94: Aulaemäntä | B94: 17 | C94: 18 | D94: 2063 | E94: 2075 | F94: =D94*(12+Henkilöstömenot!$I$29)*(1+(Henkilöstömenot!$I$28/100)) -> 32089.965 | G94: 0.1428571429 | H94: 0.8571428571
A95: Automaatioasentaja | B95: 21 | D95: 2645 | E95: 2879 | F95: =D95*(12+Henkilöstömenot!$I$29)*(1+(Henkilöstömenot!$I$28/100)) -> 41142.975 | G95: 1 | H95: 0
A96: Automaatioinsinööri | B96: 12 | D96: 3581 | E96: 3908 | F96: =D96*(12+Henkilöstömenot!$I$29)*(1+(Henkilöstömenot!$I$28/100)) -> 55702.455 | G96: 0.8333333333 | H96: 0.1666666667
A97: Autonasentaja | B97: 16 | C97: 2 | D97: 2382 | E97: 2404 | F97: =D97*(12+Henkilöstömenot!$I$29)*(1+(Henkilöstömenot!$I$28/100)) -> 37052.01 | G97: 1 | H97: 0
A98: Autonkuljettaja | B98: 108 | C98: 29 | D98: 2174 | E98: 2207 | F98: =D98*(12+Henkilöstömenot!$I$29)*(1+(Henkilöstömenot!$I$28/100)) -> 33816.57 | G98: 0.9124087591 | H98: 0.08759124088
A99: Avohuollon ohjaaja | B99: 11 | D99: 2772 | E99: 2772 | F99: =D99*(12+Henkilöstömenot!$I$29)*(1+(Henkilöstömenot!$I$28/100)) -> 43118.46 | G99: 0.09090909091 | H99: 0.9090909091
A100: Avopalveluohjaaja | B100: 16 | D100: 2891 | E100: 2907 | F100: =D100*(12+Henkilöstömenot!$I$29)*(1+(Henkilöstömenot!$I$28/100)) -> 44969.505 | G100: 0.0625 | H100: 0.9375
A101: Avustaja | B101: 537 | C101: 161 | D101: 2041 | E101: 2044 | F101: =D101*(12+Henkilöstömenot!$I$29)*(1+(Henkilöstömenot!$I$28/100)) -> 31747.755 | G101: 0.1074498567 | H101: 0.8925501433
A102: Avustaja päivähoidossa | B102: 26 | C102: 5 | D102: 1997 | E102: 1997 | F102: =D102*(12+Henkilöstömenot!$I$29)*(1+(Henkilöstömenot!$I$28/100)) -> 31063.335 | G102: 0 | H102: 1
A103: Avustava ohjaaja | B103: 39 | C103: 41 | D103: 1915 | E103: 1916 | F103: =D103*(12+Henkilöstömenot!$I$29)*(1+(Henkilöstömenot!$I$28/100)) -> 29787.825 | G103: 0.4625 | H103: 0.5375
A104: Bioanalyytikko | B104: 14 | C104: 2 | D104: 2560 | E104: 2645 | F104: =D104*(12+Henkilöstömenot!$I$29)*(1+(Henkilöstömenot!$I$28/100)) -> 39820.8 | G104: 0 | H104: 1
A105: Biologian ja maantieteen lehtori | B105: 63 | C105: 2 | D105: 4020 | E105: 4153 | F105: =D105*(12+Henkilöstömenot!$I$29)*(1+(Henkilöstömenot!$I$28/100)) -> 62531.1 | G105: 0.3692307692 | H105: 0.6307692308
A106: Controller | B106: 168 | C106: 7 | D106: 4187 | E106: 4195 | F106: =D106*(12+Henkilöstömenot!$I$29)*(1+(Henkilöstömenot!$I$28/100)) -> 65128.785 | G106: 0.2457142857 | H106: 0.7542857143
A107: Diabeteshoitaja | B107: 20 | C107: 8 | D107: 2837 | E107: 2846 | F107: =D107*(12+Henkilöstömenot!$I$29)*(1+(Henkilöstömenot!$I$28/100)) -> 44129.535 | G107: 0.03571428571 | H107: 0.9642857143
A108: Dieettikokki | B108: 49 | C108: 3 | D108: 2369 | E108: 2370 | F108: =D108*(12+Henkilöstömenot!$I$29)*(1+(Henkilöstömenot!$I$28/100)) -> 36849.795 | G108: 0.09615384615 | H108: 0.9038461538
A109: Edunvalvontasihteeri | B109: 10 | D109: 2330 | E109: 2330 | F109: =D109*(12+Henkilöstömenot!$I$29)*(1+(Henkilöstömenot!$I$28/100)) -> 36243.15 | G109: 0 | H109: 1
A110: Elektroniikka-asentaja | B110: 13 | D110: 2487 | E110: 2538 | F110: =D110*(12+Henkilöstömenot!$I$29)*(1+(Henkilöstömenot!$I$28/100)) -> 38685.285 | G110: 1 | H110: 0
A111: Elinkeinoasiamies | B111: 16 | D111: 4148 | E111: 4148 | F111: =D111*(12+Henkilöstömenot!$I$29)*(1+(Henkilöstömenot!$I$28/100)) -> 64522.14 | G111: 0.6875 | H111: 0.3125
A112: Elinkeinojohtaja | B112: 24 | D112: 5977 | E112: 5977 | F112: =D112*(12+Henkilöstömenot!$I$29)*(1+(Henkilöstömenot!$I$28/100)) -> 92972.235 | G112: 0.5416666667 | H112: 0.4583333333
A113: Elinkeinopäällikkö | B113: 17 | C113: 1 | D113: 4764 | E113: 4843 | F113: =D113*(12+Henkilöstömenot!$I$29)*(1+(Henkilöstömenot!$I$28/100)) -> 74104.02 | G113: 0.8333333333 | H113: 0.1666666667
A114: Elintarviketarkastaja | B114: 36 | C114: 1 | D114: 3509 | E114: 3512 | F114: =D114*(12+Henkilöstömenot!$I$29)*(1+(Henkilöstömenot!$I$28/100)) -> 54582.495 | G114: 0.1621621622 | H114: 0.8378378378
A115: Elinvoimajohtaja | B115: 13 | D115: 6212 | E115: 6212 | F115: =D115*(12+Henkilöstömenot!$I$29)*(1+(Henkilöstömenot!$I$28/100)) -> 96627.66 | G115: 0.5384615385 | H115: 0.4615384615
A116: Eläinlääkäri | B116: 68 | C116: 43 | D116: 3174 | E116: 3546 | F116: =D116*(12+Henkilöstömenot!$I$29)*(1+(Henkilöstömenot!$I$28/100)) -> 49371.57 | G116: 0.2252252252 | H116: 0.7747747748
A117: Eläintenhoitaja | B117: 24 | C117: 4 | D117: 2221 | E117: 2231 | F117: =D117*(12+Henkilöstömenot!$I$29)*(1+(Henkilöstömenot!$I$28/100)) -> 34547.655 | G117: 0.03571428571 | H117: 0.9642857143
A118: Emäntä | B118: 72 | C118: 12 | D118: 2384 | E118: 2390 | F118: =D118*(12+Henkilöstömenot!$I$29)*(1+(Henkilöstömenot!$I$28/100)) -> 37083.12 | G118: 0.03571428571 | H118: 0.9642857143
A119: Energia-asiantuntija | B119: 11 | C119: 1 | D119: 3548 | E119: 3548 | F119: =D119*(12+Henkilöstömenot!$I$29)*(1+(Henkilöstömenot!$I$28/100)) -> 55189.14 | G119: 0.5833333333 | H119: 0.4166666667
A120: Englannin- ja ruotsinkielen lehtori | B120: 104 | C120: 2 | D120: 3726 | E120: 3897 | F120: =D120*(12+Henkilöstömenot!$I$29)*(1+(Henkilöstömenot!$I$28/100)) -> 57957.93 | G120: 0.1037735849 | H120: 0.8962264151
A121: Englannin- ja saksankielen lehtori | B121: 10 | D121: 3891 | E121: 4123 | F121: =D121*(12+Henkilöstömenot!$I$29)*(1+(Henkilöstömenot!$I$28/100)) -> 60524.505 | G121: 0.2 | H121: 0.8
A122: Englanninkielen lehtori | B122: 111 | C122: 6 | D122: 3923 | E122: 4034 | F122: =D122*(12+Henkilöstömenot!$I$29)*(1+(Henkilöstömenot!$I$28/100)) -> 61022.265 | G122: 0.1452991453 | H122: 0.8547008547
A123: Ensihoidon kenttäjohtaja | B123: 24 | D123: 4020 | E123: 4276 | F123: =D123*(12+Henkilöstömenot!$I$29)*(1+(Henkilöstömenot!$I$28/100)) -> 62531.1 | G123: 0.9166666667 | H123: 0.08333333333
A124: Ensihoitaja | B124: 1261 | C124: 35 | D124: 3458 | E124: 3558 | F124: =D124*(12+Henkilöstömenot!$I$29)*(1+(Henkilöstömenot!$I$28/100)) -> 53789.19 | G124: 0.5794753086 | H124: 0.4205246914
A125: Ensihoitaja, hoitotaso | B125: 305 | C125: 9 | D125: 3446 | E125: 3675 | F125: =D125*(12+Henkilöstömenot!$I$29)*(1+(Henkilöstömenot!$I$28/100)) -> 53602.53 | G125: 0.5445859873 | H125: 0.4554140127
A126: Ensihoitaja, perustaso | B126: 325 | C126: 6 | D126: 3029 | E126: 3217 | F126: =D126*(12+Henkilöstömenot!$I$29)*(1+(Henkilöstömenot!$I$28/100)) -> 47116.095 | G126: 0.6012084592 | H126: 0.3987915408
A127: Ensihoitoesimies | B127: 56 | C127: 1 | D127: 3884 | E127: 4033 | F127: =D127*(12+Henkilöstömenot!$I$29)*(1+(Henkilöstömenot!$I$28/100)) -> 60415.62 | G127: 0.7368421053 | H127: 0.2631578947
A128: Ensihoitomestari | B128: 21 | D128: 3912 | E128: 3998 | F128: =D128*(12+Henkilöstömenot!$I$29)*(1+(Henkilöstömenot!$I$28/100)) -> 60851.16 | G128: 0.7619047619 | H128: 0.2380952381
A129: Ensihoitopäällikkö | B129: 24 | D129: 4629 | E129: 5078 | F129: =D129*(12+Henkilöstömenot!$I$29)*(1+(Henkilöstömenot!$I$28/100)) -> 72004.095 | G129: 0.8333333333 | H129: 0.1666666667
A130: Ensiviulun soittaja | B130: 25 | D130: 3083 | E130: 3083 | F130: =D130*(12+Henkilöstömenot!$I$29)*(1+(Henkilöstömenot!$I$28/100)) -> 47956.065 | G130: 0.36 | H130: 0.64
A131: Erikoisammattimies | B131: 330 | C131: 17 | D131: 2504 | E131: 2684 | F131: =D131*(12+Henkilöstömenot!$I$29)*(1+(Henkilöstömenot!$I$28/100)) -> 38949.72 | G131: 0.9567723343 | H131: 0.04322766571
A132: Erikoishammaslääkäri | B132: 71 | C132: 134 | D132: 7073 | E132: 7372 | F132: =D132*(12+Henkilöstömenot!$I$29)*(1+(Henkilöstömenot!$I$28/100)) -> 110020.515 | G132: 0.3024390244 | H132: 0.6975609756
A133: Erikoiskirjastonhoitaja | B133: 73 | C133: 7 | D133: 2899 | E133: 2899 | F133: =D133*(12+Henkilöstömenot!$I$29)*(1+(Henkilöstömenot!$I$28/100)) -> 45093.945 | G133: 0.1625 | H133: 0.8375
A134: Erikoiskirjastovirkailija | B134: 158 | C134: 19 | D134: 2576 | E134: 2577 | F134: =D134*(12+Henkilöstömenot!$I$29)*(1+(Henkilöstömenot!$I$28/100)) -> 40069.68 | G134: 0.2598870056 | H134: 0.7401129944
A135: Erikoislääkäri | B135: 2095 | C135: 823 | D135: 6225 | E135: 8866 | F135: =D135*(12+Henkilöstömenot!$I$29)*(1+(Henkilöstömenot!$I$28/100)) -> 96829.875 | G135: 0.3656614119 | H135: 0.6343385881
A136: Erikoisopettaja | B136: 20 | C136: 2 | D136: 3757 | E136: 3760 | F136: =D136*(12+Henkilöstömenot!$I$29)*(1+(Henkilöstömenot!$I$28/100)) -> 58440.135 | G136: 0.1363636364 | H136: 0.8636363636
A137: Erikoissairaanhoitaja | B137: 130 | C137: 21 | D137: 3020 | E137: 3054 | F137: =D137*(12+Henkilöstömenot!$I$29)*(1+(Henkilöstömenot!$I$28/100)) -> 46976.1 | G137: 0.1258278146 | H137: =1-G137 -> 0.8741721854
A138: Erikoissuunnittelija | B138: 123 | C138: 11 | D138: 3892 | E138: 3902 | F138: =D138*(12+Henkilöstömenot!$I$29)*(1+(Henkilöstömenot!$I$28/100)) -> 60540.06 | G138: 0.3582089552 | H138: 0.6417910448
A139: Erikoistutkija | B139: 16 | C139: 9 | D139: 4106 | E139: 4106 | F139: =D139*(12+Henkilöstömenot!$I$29)*(1+(Henkilöstömenot!$I$28/100)) -> 63868.83 | G139: 0.56 | H139: 0.44
A140: Erikoistuva fyysikko | B140: 21 | C140: 3 | D140: 3664 | E140: 3664 | F140: =D140*(12+Henkilöstömenot!$I$29)*(1+(Henkilöstömenot!$I$28/100)) -> 56993.52 | G140: 0.625 | H140: 0.375
A141: Erikoistuva hammaslääkäri | B141: 41 | C141: 22 | D141: 4330 | E141: 4893 | F141: =D141*(12+Henkilöstömenot!$I$29)*(1+(Henkilöstömenot!$I$28/100)) -> 67353.15 | G141: 0.3174603175 | H141: 0.6825396825
A142: Erikoistuva lääkäri | B142: 2512 | C142: 188 | D142: 4091 | E142: 6065 | F142: =D142*(12+Henkilöstömenot!$I$29)*(1+(Henkilöstömenot!$I$28/100)) -> 63635.505 | G142: 0.3907407407 | H142: 0.6092592593
A143: Erityisasiantuntija | B143: 160 | C143: 12 | D143: 4256 | E143: 4257 | F143: =D143*(12+Henkilöstömenot!$I$29)*(1+(Henkilöstömenot!$I$28/100)) -> 66202.08 | G143: 0.2790697674 | H143: 0.7209302326
A144: Erityisavustaja | B144: 764 | C144: 87 | D144: 2042 | E144: 2043 | F144: =D144*(12+Henkilöstömenot!$I$29)*(1+(Henkilöstömenot!$I$28/100)) -> 31763.31 | G144: 0.08460634548 | H144: 0.9153936545
A145: Erityiskoulun rehtori | B145: 24 | D145: 5454 | E145: 5454 | F145: =D145*(12+Henkilöstömenot!$I$29)*(1+(Henkilöstömenot!$I$28/100)) -> 84836.97 | G145: 0.5416666667 | H145: 0.4583333333
A146: Erityislastentarhan opettaja | B146: 608 | C146: 44 | D146: 2937 | E146: 2940 | F146: =D146*(12+Henkilöstömenot!$I$29)*(1+(Henkilöstömenot!$I$28/100)) -> 45685.035 | G146: 0.01533742331 | H146: 0.9846625767
A147: Erityisliikunnanohjaaja | B147: 32 | C147: 6 | D147: 2406 | E147: 2406 | F147: =D147*(12+Henkilöstömenot!$I$29)*(1+(Henkilöstömenot!$I$28/100)) -> 37425.33 | G147: 0.07894736842 | H147: 0.9210526316
A148: Erityisluokanopett., harjaantumisopetus | B148: 51 | C148: 2 | D148: 3990 | E148: 4125 | F148: =D148*(12+Henkilöstömenot!$I$29)*(1+(Henkilöstömenot!$I$28/100)) -> 62064.45 | G148: 0.1132075472 | H148: 0.8867924528
A149: Erityisluokanopett., mukautettu opetus | B149: 108 | D149: 3990 | E149: 4030 | F149: =D149*(12+Henkilöstömenot!$I$29)*(1+(Henkilöstömenot!$I$28/100)) -> 62064.45 | G149: 0.1574074074 | H149: 0.8425925926
A150: Erityisluokanopett., sopeutumatt. opetus | B150: 11 | D150: 4538 | E150: 4558 | F150: =D150*(12+Henkilöstömenot!$I$29)*(1+(Henkilöstömenot!$I$28/100)) -> 70588.59 | G150: 0.4545454545 | H150: 0.5454545455
A151: Erityisluokanopett., vammaisten opetus | B151: 18 | D151: 3745 | E151: 3946 | F151: =D151*(12+Henkilöstömenot!$I$29)*(1+(Henkilöstömenot!$I$28/100)) -> 58253.475 | G151: 0.2222222222 | H151: 0.7777777778
A152: Erityisluokanopettaja | B152: 2973 | C152: 33 | D152: 3788 | E152: 3892 | F152: =D152*(12+Henkilöstömenot!$I$29)*(1+(Henkilöstömenot!$I$28/100)) -> 58922.34 | G152: 0.1819693945 | H152: 0.8180306055
A153: Erityisluokanopettaja/erityisopettaja | B153: 208 | C153: 2 | D153: 3504 | E153: 3693 | F153: =D153*(12+Henkilöstömenot!$I$29)*(1+(Henkilöstömenot!$I$28/100)) -> 54504.72 | G153: 0.1523809524 | H153: 0.8476190476
A154: Erityisnuorisotyöntekijä | B154: 89 | C154: 5 | D154: 2479 | E154: 2502 | F154: =D154*(12+Henkilöstömenot!$I$29)*(1+(Henkilöstömenot!$I$28/100)) -> 38560.845 | G154: 0.414893617 | H154: 0.585106383
A155: Erityisohjaaja | B155: 37 | C155: 13 | D155: 2263 | E155: 2263 | F155: =D155*(12+Henkilöstömenot!$I$29)*(1+(Henkilöstömenot!$I$28/100)) -> 35200.965 | G155: 0.1 | H155: 0.9
A156: Erityisopettaja | B156: 32 | C156: 1 | D156: 3872 | E156: 3918 | F156: =D156*(12+Henkilöstömenot!$I$29)*(1+(Henkilöstömenot!$I$28/100)) -> 60228.96 | G156: 0 | H156: 1
A157: Erityisopettaja, muu kuin peruskoulussa | B157: 238 | C157: 10 | D157: 3796 | E157: 3826 | F157: =D157*(12+Henkilöstömenot!$I$29)*(1+(Henkilöstömenot!$I$28/100)) -> 59046.78 | G157: 0.1129032258 | H157: 0.8870967742
A158: Erityisopettaja, peruskoulussa | B158: 1971 | C158: 81 | D158: 3686 | E158: 3745 | F158: =D158*(12+Henkilöstömenot!$I$29)*(1+(Henkilöstömenot!$I$28/100)) -> 57335.73 | G158: 0.1072124756 | H158: 0.8927875244
A159: Erityisryhmien liikunnanohjaaja | B159: 15 | C159: 4 | D159: 2483 | E159: 2488 | F159: =D159*(12+Henkilöstömenot!$I$29)*(1+(Henkilöstömenot!$I$28/100)) -> 38623.065 | G159: 0 | H159: 1
A160: Erityissosiaaliohjaaja | B160: 53 | C160: 2 | D160: 3212 | E160: 3212 | F160: =D160*(12+Henkilöstömenot!$I$29)*(1+(Henkilöstömenot!$I$28/100)) -> 49962.66 | G160: 0.09090909091 | H160: 0.9090909091
A161: Erityissosiaalityöntekijä | B161: 38 | C161: 7 | D161: 3525 | E161: 3525 | F161: =D161*(12+Henkilöstömenot!$I$29)*(1+(Henkilöstömenot!$I$28/100)) -> 54831.375 | G161: 0.06666666667 | H161: 0.9333333333
A162: Erityissuunnittelija | B162: 131 | C162: 14 | D162: 4048 | E162: 4059 | F162: =D162*(12+Henkilöstömenot!$I$29)*(1+(Henkilöstömenot!$I$28/100)) -> 62966.64 | G162: 0.2413793103 | H162: 0.7586206897
A163: Esikoulunopettaja | B163: 58 | C163: 22 | D163: 2857 | E163: 2875 | F163: =D163*(12+Henkilöstömenot!$I$29)*(1+(Henkilöstömenot!$I$28/100)) -> 44440.635 | G163: 0 | H163: 1
A164: Esiluokan opettaja | B164: 147 | C164: 15 | D164: 3032 | E164: 3060 | F164: =D164*(12+Henkilöstömenot!$I$29)*(1+(Henkilöstömenot!$I$28/100)) -> 47162.76 | G164: 0.01851851852 | H164: 0.9814814815
A165: Esiluokanopettaja | B165: 25 | C165: 5 | D165: 2842 | E165: 2900 | F165: =D165*(12+Henkilöstömenot!$I$29)*(1+(Henkilöstömenot!$I$28/100)) -> 44207.31 | G165: 0.03333333333 | H165: 0.9666666667
A166: Esimies | B166: 34 | C166: 1 | D166: 3323 | E166: 3459 | F166: =D166*(12+Henkilöstömenot!$I$29)*(1+(Henkilöstömenot!$I$28/100)) -> 51689.265 | G166: 0.2571428571 | H166: 0.7428571429
A167: Esiopettaja | B167: 20 | C167: 8 | D167: 2844 | E167: 2929 | F167: =D167*(12+Henkilöstömenot!$I$29)*(1+(Henkilöstömenot!$I$28/100)) -> 44238.42 | G167: 0.07142857143 | H167: 0.9285714286
A168: Etsivä nuorisotyöntekijä | B168: 168 | C168: 12 | D168: 2427 | E168: 2436 | F168: =D168*(12+Henkilöstömenot!$I$29)*(1+(Henkilöstömenot!$I$28/100)) -> 37751.985 | G168: 0.2222222222 | H168: 0.7777777778
A169: Etuuskäsittelijä | B169: 138 | C169: 14 | D169: 2505 | E169: 2505 | F169: =D169*(12+Henkilöstömenot!$I$29)*(1+(Henkilöstömenot!$I$28/100)) -> 38965.275 | G169: 0.125 | H169: 0.875
A170: Farmanomi | B170: 23 | C170: 1 | D170: 2271 | E170: 2271 | F170: =D170*(12+Henkilöstömenot!$I$29)*(1+(Henkilöstömenot!$I$28/100)) -> 35325.405 | G170: 0.08333333333 | H170: 0.9166666667
A171: Farmaseutti | B171: 396 | C171: 76 | D171: 2860 | E171: 2960 | F171: =D171*(12+Henkilöstömenot!$I$29)*(1+(Henkilöstömenot!$I$28/100)) -> 44487.3 | G171: 0.09110169492 | H171: 0.9088983051
A172: Fysiikan ja kemian lehtori | B172: 12 | C172: 1 | D172: 4514 | E172: 4673 | F172: =D172*(12+Henkilöstömenot!$I$29)*(1+(Henkilöstömenot!$I$28/100)) -> 70215.27 | G172: 0.3846153846 | H172: 0.6153846154
A173: Fysioterapeutti | B173: 2772 | C173: 473 | D173: 2645 | E173: 2651 | F173: =D173*(12+Henkilöstömenot!$I$29)*(1+(Henkilöstömenot!$I$28/100)) -> 41142.975 | G173: 0.1266563945 | H173: 0.8733436055
A174: Fyysikko | B174: 53 | C174: 17 | D174: 4987 | E174: 5235 | F174: =D174*(12+Henkilöstömenot!$I$29)*(1+(Henkilöstömenot!$I$28/100)) -> 77572.785 | G174: 0.5428571429 | H174: 0.4571428571
A175: Geronomi | B175: 40 | C175: 6 | D175: 2777 | E175: 2806 | F175: =D175*(12+Henkilöstömenot!$I$29)*(1+(Henkilöstömenot!$I$28/100)) -> 43196.235 | G175: 0.02173913043 | H175: 0.9782608696
A176: Graafikko | B176: 16 | C176: 3 | D176: 2484 | E176: 2484 | F176: =D176*(12+Henkilöstömenot!$I$29)*(1+(Henkilöstömenot!$I$28/100)) -> 38638.62 | G176: 0.3684210526 | H176: 0.6315789474
A177: Graafinen suunnittelija | B177: 33 | C177: 9 | D177: 2894 | E177: 2894 | F177: =D177*(12+Henkilöstömenot!$I$29)*(1+(Henkilöstömenot!$I$28/100)) -> 45016.17 | G177: 0.3333333333 | H177: 0.6666666667
A178: Hallimestari | B178: 28 | C178: 2 | D178: 2787 | E178: 2840 | F178: =D178*(12+Henkilöstömenot!$I$29)*(1+(Henkilöstömenot!$I$28/100)) -> 43351.785 | G178: 0.9666666667 | H178: 0.03333333333
A179: Hallinnollinen päiväkodin johtaja | B179: 37 | C179: 1 | D179: 3510 | E179: 3516 | F179: =D179*(12+Henkilöstömenot!$I$29)*(1+(Henkilöstömenot!$I$28/100)) -> 54598.05 | G179: 0.05263157895 | H179: 0.9473684211
A180: Hallinnollinen sihteeri | B180: 17 | C180: 1 | D180: 2904 | E180: 2904 | F180: =D180*(12+Henkilöstömenot!$I$29)*(1+(Henkilöstömenot!$I$28/100)) -> 45171.72 | G180: 0 | H180: 1
A181: Hallinnon sihteeri | B181: 51 | C181: 7 | D181: 2555 | E181: 2569 | F181: =D181*(12+Henkilöstömenot!$I$29)*(1+(Henkilöstömenot!$I$28/100)) -> 39743.025 | G181: 0.01724137931 | H181: 0.9827586207
A182: Hallinnon suunnittelija | B182: 16 | C182: 1 | D182: 3073 | E182: 3073 | F182: =D182*(12+Henkilöstömenot!$I$29)*(1+(Henkilöstömenot!$I$28/100)) -> 47800.515 | G182: 0.1764705882 | H182: 0.8235294118
A183: Hallinto- ja talousjohtaja | B183: 16 | D183: 5739 | E183: 5739 | F183: =D183*(12+Henkilöstömenot!$I$29)*(1+(Henkilöstömenot!$I$28/100)) -> 89270.145 | G183: 0.4375 | H183: 0.5625
A184: Hallinto- ja talouspäällikkö | B184: 17 | D184: 4312 | E184: 4392 | F184: =D184*(12+Henkilöstömenot!$I$29)*(1+(Henkilöstömenot!$I$28/100)) -> 67073.16 | G184: 0.2941176471 | H184: 0.7058823529
A185: Hallintoasiantuntija | B185: 19 | C185: 1 | D185: 3394 | E185: 3394 | F185: =D185*(12+Henkilöstömenot!$I$29)*(1+(Henkilöstömenot!$I$28/100)) -> 52793.67 | G185: 0.05 | H185: 0.95
A186: Hallintoassistentti | B186: 51 | C186: 4 | D186: 2570 | E186: 2570 | F186: =D186*(12+Henkilöstömenot!$I$29)*(1+(Henkilöstömenot!$I$28/100)) -> 39976.35 | G186: 0.07272727273 | H186: 0.9272727273
A187: Hallintojohtaja | B187: 162 | C187: 3 | D187: 5856 | E187: 5865 | F187: =D187*(12+Henkilöstömenot!$I$29)*(1+(Henkilöstömenot!$I$28/100)) -> 91090.08 | G187: 0.3757575758 | H187: 0.6242424242
A188: Hallintolakimies | B188: 17 | D188: 5555 | E188: 5555 | F188: =D188*(12+Henkilöstömenot!$I$29)*(1+(Henkilöstömenot!$I$28/100)) -> 86408.025 | G188: 0.4117647059 | H188: 0.5882352941
A189: Hallintopalvelusihteeri | B189: 34 | C189: 3 | D189: 2582 | E189: 2582 | F189: =D189*(12+Henkilöstömenot!$I$29)*(1+(Henkilöstömenot!$I$28/100)) -> 40163.01 | G189: 0.08108108108 | H189: 0.9189189189
A190: Hallintopäällikkö | B190: 132 | C190: 4 | D190: 4903 | E190: 4909 | F190: =D190*(12+Henkilöstömenot!$I$29)*(1+(Henkilöstömenot!$I$28/100)) -> 76266.165 | G190: 0.2867647059 | H190: 0.7132352941
A191: Hallintosihteeri | B191: 489 | C191: 27 | D191: 2847 | E191: 2852 | F191: =D191*(12+Henkilöstömenot!$I$29)*(1+(Henkilöstömenot!$I$28/100)) -> 44285.085 | G191: 0.02325581395 | H191: 0.976744186
A192: Hallintosuunnittelija | B192: 14 | C192: 3 | D192: 3138 | E192: 3138 | F192: =D192*(12+Henkilöstömenot!$I$29)*(1+(Henkilöstömenot!$I$28/100)) -> 48811.59 | G192: 0.3529411765 | H192: 0.6470588235
A193: Hallintoylihoitaja | B193: 14 | C193: 1 | D193: 6776 | E193: 6776 | F193: =D193*(12+Henkilöstömenot!$I$29)*(1+(Henkilöstömenot!$I$28/100)) -> 105400.68 | G193: 0 | H193: 1
A194: Hammashoitaja | B194: 2635 | C194: 418 | D194: 2319 | E194: 2353 | F194: =D194*(12+Henkilöstömenot!$I$29)*(1+(Henkilöstömenot!$I$28/100)) -> 36072.045 | G194: 0.009171306911 | H194: 0.9908286931
A195: Hammashuollon vastaanottoavustaja | B195: 14 | C195: 3 | D195: 2279 | E195: 2283 | F195: =D195*(12+Henkilöstömenot!$I$29)*(1+(Henkilöstömenot!$I$28/100)) -> 35449.845 | G195: 0 | H195: 1
A196: Hammaslääkäri | B196: 70 | C196: 42 | D196: 6089 | E196: 6299 | F196: =D196*(12+Henkilöstömenot!$I$29)*(1+(Henkilöstömenot!$I$28/100)) -> 94714.395 | G196: 0.3035714286 | H196: 0.6964285714
A197: Hankejohtaja | B197: 27 | C197: 2 | D197: 6697 | E197: 6697 | F197: =D197*(12+Henkilöstömenot!$I$29)*(1+(Henkilöstömenot!$I$28/100)) -> 104171.835 | G197: 0.5517241379 | H197: 0.4482758621
A198: Hankekoordinaattori | B198: 78 | C198: 18 | D198: 3261 | E198: 3261 | F198: =D198*(12+Henkilöstömenot!$I$29)*(1+(Henkilöstömenot!$I$28/100)) -> 50724.855 | G198: 0.1979166667 | H198: 0.8020833333
A199: Hankepäällikkö | B199: 58 | C199: 4 | D199: 4391 | E199: 4391 | F199: =D199*(12+Henkilöstömenot!$I$29)*(1+(Henkilöstömenot!$I$28/100)) -> 68302.005 | G199: 0.3709677419 | H199: 0.6290322581
A200: Hankesuunnittelija | B200: 30 | C200: 2 | D200: 3423 | E200: 3423 | F200: =D200*(12+Henkilöstömenot!$I$29)*(1+(Henkilöstömenot!$I$28/100)) -> 53244.765 | G200: 0.28125 | H200: 0.71875
... 1120 more rows

Sheet Linkkejä tietolähteisiin
A1: Tietolähteitä kustannusvaikutusten arvioinnin tueksi
A3: Sosiaali- ja terveys
B4: Terveyden ja hyvinvoinnin laitos, THL
C5: Kapiainen, Väisänen, Haula (2014): Sosiaali- ja terveydenhuollon yksikkökustannukset Suomessa vuonna 2011, Raportti 3/2014 (linkki)
B6: Tilasto- ja indikaattoripankki SOTKAnet
C7: www.sotkanet.fi
B8: Kuntien sosiaali- ja terveydenhuollon järjestelmä (järjestäjien määrätietoja ym.)
C9: https://www.kuntaliitto.fi/sosiaali-ja-terveydenhuollon-jarjestaminen-2020
B10: Sote-kustannusvertailut: Ikäryhmiin suhteutettua kustannustietoa terveydenhuollosta ja eräistä sosiaalihuollon palveluista
C11: https://www.kuntaliitto.fi/asiantuntijapalvelut/sosiaali-ja-terveysasiat/tilastot-ja-erillisselvitykset
B12: Tietoa sosiaali- ja terveydenhuollon rahoituksesta, kustannuksista ja tarvevakioiduista kustannuksista, THL
C13: https://thl.fi/fi/web/sote-uudistus/talous-ja-politiikka/kustannukset-ja-vaikuttavuus/rahoitus
B14: Kuusikkokuntien kustannusvertailut: kustannus- ja suoritetietoa kuudesta suurimmasta kaupungista
C15: www.kuusikkokunnat.fi
C16: Lasten päivähoito
C17: Lastensuojelu
C18: Aikuissosiaalityö ja toimeentulotuki
C19: Sosiaalityö
C20: Päihdehuolto
C21: Vammaispalvelulain mukaiset palvelut
C22: Kehitysvammahuolto
C23: Vanhuspalvelut
A25: Opetus- ja kulttuuri:
B26: Opetushallitus, opetus- ja kulttuuritoimen rahoitusjärjestelmä
C27: http://www.oph.fi/rahoitus/valtionosuudet/raportit
C28: http://vos.uta.fi/rap/
C30: http://www.kouluikkuna.fi./julkaisut/
A50: Muut
A52: www.kt.fi
A53: > Palkat. ammatit, tutkinnot
A54: > Tilastot ja selvitykset
A56: Kuntataloustilasto:
A57: http://pxnet2.stat.fi/PXWeb/pxweb/fi/Kuntien_talous_ja_toiminta/
